[Event "10th Cherry Blossom Classic 2023"]
[Site "Dulles"]
[Date "2023.05.30"]
[Round "9.6"]
[White "Druska, Juraj"]
[Black "Roselli Mailhe, Bernardo"]
[Result "1-0"]
[ECO "B50"]
[WhiteElo "2496"]
[BlackElo "2380"]
[Annotator "TA"]
[PlyCount "95"]
[EventDate "2023.05.24"]
[EventType "swiss"]
[EventCountry "USA"]
[SourceTitle "playchess.com"]
[Source "ChessBase"]
[SourceQuality "1"]
[TimeControl "5400+30"]

{[%evp 11,95,24,31,3,4,1,17,21,17,-14,30,22,40,30,32,27,74,60,41,12,69,56,49,53,47,48,47,45,82,45,89,90,90,99,89,106,323,323,315,95,121,105,114,111,110,114,129,119,159,110,105,108,162,20,187,187,185,147,136,142,136,134,153,140,143,109,278,279,564,567,506,464,427,390,504,504,504,504,829,743,898,872,3603,4263,6829,5725]} 1. e4 {[%emt 0:04:18]} c5 {[%emt 0:00:05]} 2. Nf3 {[%emt 0:00:16]} e6 {[%emt 0:00:05]} 3. b3 {[%emt 0:00:21]} Nc6 {[%emt 0:00:06]} 4. Bb2 {[%emt 0:00:09]} d6 {[%emt 0:00:11]} 5. d4 {[%emt 0:00:18]} cxd4 {[%emt 0:01:05]} 6. Nxd4 {[%emt 0:00:07]} Nf6 {[%emt 0:02:47]} 7. Nc3 {[%emt 0:00:11] B50: Sicilian: 2...d6, Miscellaneous.} Be7 {[%emt 0:00:29]} 8. Qd2 {[%emt 0:00:07]} O-O {[%emt 0:05:00]} 9. O-O-O {[%emt 0:00:35] The position is equal.} a6 {[%emt 0:02:15]} 10. Kb1 {[%emt 0:16:29]} Bd7 {[%emt 0:08:37]} 11. f3 {[%emt 0:04:24]} Qc7 {[%emt 0:05:55]} 12. g4 {[%emt 0:00:36][%cal Bg2g4,Bg4g5][%mdl 32]} Nxd4 {[%emt 0:06:52]} 13. Qxd4 {[%emt 0:00:09] [#]} Rfc8 $146 {[%emt 0:00:06]} (13... b5 $11) ({Predecessor:} 13... Rfd8 14. g5 Ne8 15. h4 e5 16. Qd2 Be6 17. Bh3 b5 18. Nd5 Bxd5 19. Qxd5 Rab8 {1-0 Hossain,E (2426)-Hamid,R (1874) Joytu Sheikh Hasina Online op 2020 (1)}) 14. g5 $1 $16 {[%emt 0:09:18]} Nh5 {[%emt 0:01:51]} 15. f4 {[%emt 0:10:06]} Bc6 {[%emt 0:27:13]} (15... b5 $11) 16. Qd2 {[%emt 0:26:24] White is more active.} (16. f5 $5 {[%cal Rf5e6]}) 16... d5 {[%emt 0:18:29]} 17. exd5 {[%emt 0:00:06]} exd5 {[%emt 0:00:03] ...d4 is the strong threat.} 18. Ne2 {[%emt 0:00:30] Bh3 would be deadly.} d4 {[%emt 0:01:30]} 19. Rg1 {[%emt 0:00:02]} Bf3 {[%emt 0:01:38][%cal Oe7b4]} 20. Rc1 {[%emt 0:01:46]} (20. Re1 {with more complications.} d3 21. cxd3 a5 22. Rc1) 20... Rd8 {[%emt 0:03:04]} 21. Nxd4 {[%emt 0:06:31] And now Bd3 would win.} Nxf4 {[%emt 0:02:52]} (21... Qxf4 $2 22. Qxf4 Nxf4 23. Nxf3 $18) 22. Qe3 $1 {[%emt 0:07:39]} Bh5 {[%emt 0:00:56]} 23. Nf5 {[%emt 0:00:25][%csl LRe7,LRg7]} Bf8 {[%emt 0:00:08]} (23... Bd6 $16) 24. Be5 $1 $18 {[%emt 0:00:45]} Qc5 {[%emt 0:01:08] [#] Strongly threatening ...Ng6.} 25. Nh6+ $1 {[%emt 0:05:03][%mdl 512]} gxh6 $16 {[%emt 0:01:04]} 26. Qxf4 {[%emt 0:00:47]} (26. Bxf4 Qxe3 27. Bxe3 Ba3 $14) 26... Bd6 {[%emt 0:02:19][%cal Od6e5]} (26... Qxg1 $2 27. Qf6 hxg5 28. Qh8#) 27. Bxd6 {[%emt 0:02:25]} Qxd6 {[%emt 0:00:20]} (27... Qxg1 $2 28. Be2 Qb6 29. Bc7 $18 (29. Bxh5 Qxd6 30. Qxf7+ Kh8 $11)) 28. gxh6+ {[%emt 0:00:16]} Bg6 {[%emt 0:00:13]} 29. Qg5 {[%emt 0:02:21] Hoping for h4.} Qd2 {[%emt 0:00:34]} 30. Bc4 {[%emt 0:01:36]} ({White should try} 30. h4) 30... Qxg5 {[%emt 0:02:48]} 31. Rxg5 {[%emt 0:00:02]} Rd2 {[%emt 0:00:12] [#]} (31... Rd4 $16 {was necessary.}) 32. Rf1 {[%emt 0:01:20]} (32. h4 $1 $18 {[%cal Rh4h5] Black must now prevent h5.} Rh2 33. Bd5) 32... Rf8 $2 {[%emt 0:01:12] [#]} (32... Kh8 $11 {and Black has nothing to worry.}) 33. h4 $1 $36 {[%emt 0:00:28][%mdl 2048] aiming for h5. White is on the roll.} Rh2 {[%emt 0:00:06]} 34. Rf4 {[%emt 0:01:05]} Kh8 {[%emt 0:00:49]} 35. Bd3 {[%emt 0:00:05]} Bxd3 {[%emt 0:01:10]} 36. cxd3 $16 {[%emt 0:00:01][%mdl 4096] Endgame KRR-KRR} Re8 {[%emt 0:00:20][%cal Re8e1]} 37. Rg1 {[%emt 0:00:25] Repels Re1+} (37. Rxf7 $2 Re1#) 37... b5 {[%emt 0:02:17]} 38. d4 {[%emt 0:00:24]} Ree2 $2 {[%emt 0:00:34]} (38... f5 $16 {might work better.} 39. Rc1 (39. Rxf5 Rxh4 40. Rf6 Rxd4 $16) 39... Kg8) 39. Rxf7 $18 {[%emt 0:00:21][%cal Rf7f8]} Rhf2 $2 {[%emt 0:02:27]} (39... Rb2+ 40. Kc1 Rbc2+ 41. Kd1 (41. Kb1 Rb2+ 42. Kc1 Rbc2+ 43. Kb1 Rb2+ $18) 41... Rcd2+ 42. Ke1 Rhe2+ 43. Kf1 Re8) 40. Rxf2 {[%emt 0:01:33]} Rxf2 {[%emt 0:00:02] KR-KR} 41. Rc1 {[%emt 0:00:44] Threatening mate with Rc8+.} Kg8 {[%emt 0:00:25]} 42. h5 {[%emt 0:00:19]} Rd2 {[%emt 0:00:08]} 43. Rc8+ {[%emt 0:00:07] White is clearly winning.} Kf7 {[%emt 0:00:08]} 44. Rc7+ {[%emt 0:00:09]} Kf6 {[%emt 0:00:27]} (44... Kf8 $142 45. Rxh7 Kg8) 45. Rxh7 {[%emt 0:00:20]} Rxd4 {[%emt 0:00:05]} 46. Ra7 {[%emt 0:00:07]} Rh4 {[%emt 0:01:10]} 47. Rxa6+ {[%emt 0:00:09]} Ke5 {[%emt 0:00:08]} 48. Ra5 {[%emt 0:00:32] Weighted Error Value: White=0.19 (very precise) /Black=0.46} 1-0

[Event "10th Cherry Blossom Classic 2023"]
[Site "Dulles"]
[Date "2023.05.29"]
[Round "9.7"]
[White "Marjanovic, Annamaria"]
[Black "Sriniaiyer, Sudarshan"]
[Result "1/2-1/2"]
[ECO "E16"]
[WhiteElo "2273"]
[BlackElo "2211"]
[Annotator "TA"]
[PlyCount "32"]
[EventDate "2023.05.24"]
[EventType "swiss"]
[EventCountry "USA"]
[SourceTitle "playchess.com"]
[Source "ChessBase"]
[SourceQuality "1"]
[TimeControl "5400+30"]

{[%evp 17,32,10,22,-5,0,0,0,0,0,-9,-16,-14,62,-12,0,0,45]} 1. d4 {[%emt 0:03:27]} Nf6 {[%emt 0:00:12]} 2. c4 {[%emt 0:00:06]} e6 {[%emt 0:00:04]} 3. g3 {[%emt 0:00:04]} d5 {[%emt 0:00:05]} 4. Bg2 {[%emt 0:00:05]} Bb4+ {[%emt 0:00:07]} 5. Nd2 {[%emt 0:00:06]} O-O {[%emt 0:04:39]} 6. Ngf3 {[%emt 0:00:09]} b6 {[%emt 0:00:01]} 7. O-O {[%emt 0:00:15]} Bb7 {[%emt 0:00:03]} 8. cxd5 {[%emt 0:00:11]} exd5 {[%emt 0:00:09]} 9. a3 {[%emt 0:00:09]} Be7 {[%emt 0:00:34]} 10. Nb1 {[%emt 0:01:09] E16: Queen's Indian: 4 g3 Bb7 5 Bg2 Bb4+.} Re8 {[%emt 0:08:04]} 11. Nc3 {[%emt 0:00:36]} c5 {[%emt 0:07:38]} 12. Bf4 {[%emt 0:06:00] [#]} Ne4 $146 {[%emt 0:16:07]} ({Predecessor:} 12... Nc6 13. Nb5 Rc8 14. Bh3 Ba6 15. Bxc8 Bxb5 16. Bh3 Bd6 17. Be3 h6 18. Re1 Na5 19. Nd2 Qe7 {½-½ Mutzbauer,O (1492)-Hegel,P (1574) Unterfranken-ch HT 61th 2010 (4)}) 13. Rc1 {[%emt 0:10:47]} Nxc3 {[%emt 0:13:22]} 14. Rxc3 {[%emt 0:00:17]} c4 {[%emt 0:00:12]} (14... Nd7 $11) 15. Nd2 {[%emt 0:27:04] White is more active.} (15. b3 $14) 15... b5 {[%emt 0:08:47]} 16. e4 {[%emt 0:05:52]} dxe4 {[%emt 0:05:28] Not much happened in this game.   Weighted Error Value: White=0.25 (precise) /Black=0.19 (very precise)} 1/2-1/2

[Event "10th Cherry Blossom Classic 2023"]
[Site "Dulles"]
[Date "2023.05.30"]
[Round "9.8"]
[White "Tanenbaum, Zachary"]
[Black "Prabhu, Naveen"]
[Result "1-0"]
[ECO "B13"]
[WhiteElo "2261"]
[BlackElo "2138"]
[Annotator "TA"]
[PlyCount "119"]
[EventDate "2023.05.24"]
[EventType "swiss"]
[EventCountry "USA"]
[SourceTitle "playchess.com"]
[Source "ChessBase"]
[SourceQuality "1"]
[TimeControl "5400+30"]

{[%evp 19,119,28,27,30,29,29,33,35,41,47,46,48,57,31,53,40,51,57,34,28,29,26,39,0,0,0,11,16,10,8,8,8,25,21,46,43,71,68,75,65,85,36,38,32,207,232,237,211,265,202,241,231,216,204,369,369,365,312,327,334,279,181,158,143,160,143,295,295,5196,4165,3336,3429,5102,2533,29968,29969,29971,29971,29973,29974,29974,29975,29975,29975,29975,29976,29976,29977,29977,29978,29982,29981,29981,29982,29982,29983,29983,29984,29985,29986,29987,29988]} 1. e4 {[%emt 0:05:50]} c6 {[%emt 0:01:23]} 2. d4 {[%emt 0:00:02]} d5 {[%emt 0:00:08]} 3. exd5 {[%emt 0:00:07]} cxd5 {[%emt 0:00:07]} 4. Bd3 {[%emt 0:00:04]} Nc6 {[%emt 0:00:10]} 5. c3 {[%emt 0:00:04]} Nf6 {[%emt 0:00:10]} 6. Bf4 {[%emt 0:00:01]} Bg4 {[%emt 0:00:26]} 7. Qb3 {[%emt 0:00:02]} Qd7 {[%emt 0:00:48]} 8. Nd2 {[%emt 0:00:02]} e6 {[%emt 0:00:20]} 9. Ngf3 {[%emt 0:00:02]} Bd6 {[%emt 0:00:12] is recently more successful than 9...Bxf3.} 10. Bxd6 {[%emt 0:00:11]} Qxd6 {[%emt 0:00:07]} 11. O-O {[%emt 0:00:08] B13: Caro-Kann: Exchange Variation and Panov-Botvinnik Attack.} O-O {[%emt 0:00:24]} 12. Rfe1 {[%emt 0:00:02]} Ne7 {[%emt 0:01:02]} 13. Ne5 {[%emt 0:00:02] White is slightly better.} (13. Qxb7 Rfb8 14. Qa6 Qxa6 15. Bxa6 Rxb2 $15) 13... Bf5 {[%emt 0:01:25]} 14. Bxf5 {[%emt 0:00:02]} (14. Qxb7 $2 {too greedy.} Bxd3 15. Qb4 (15. Nxd3 $2 {perishes.} Rfb8 $19) 15... Qxb4 16. cxb4 Bc2 $19) 14... Nxf5 {[%emt 0:00:09]} 15. Qxb7 {[%emt 0:00:14]} Rab8 {[%emt 0:03:23]} 16. Qxa7 {[%emt 0:00:03] Black must now prevent Nb3.} Rxb2 {[%emt 0:00:14]} 17. Nb3 {[%emt 0:00:02]} h5 {[%emt 0:05:27]} 18. h3 {[%emt 0:00:25]} Rc2 {[%emt 0:07:49] [#]} 19. Rac1 $146 {[%emt 0:02:31]} ({Predecessor:} 19. Nc5 Ne4 20. Rac1 Rxc1 21. Rxc1 Nxc5 22. Qxc5 Qa6 23. Ra1 Rc8 24. Qb4 f6 25. Nd7 {½-½ Rivas Maceda,J (2341)-Tiemann,H (2310) WLS/SRCCC/19/D1 2019 [3]}) 19... Rxc1 {[%emt 0:01:04]} 20. Rxc1 {[%emt 0:01:27]} Ne4 {[%emt 0:03:54]} 21. Nd3 {[%emt 0:21:33]} Qd8 {[%emt 0:15:08]} 22. Ndc5 {[%emt 0:13:21]} Qg5 {[%emt 0:22:16]} 23. Nxe4 {[%emt 0:03:39]} dxe4 {[%emt 0:00:03]} 24. Qb7 {[%emt 0:04:52]} e3 {[%emt 0:01:23]} 25. Qf3 {[%emt 0:05:10]} Nh4 {[%emt 0:03:59]} 26. Qg3 {[%emt 0:01:31]} (26. Qxe3 $2 Qxg2#) 26... exf2+ {[%emt 0:00:15]} 27. Kxf2 {[%emt 0:06:01]} Qf5+ {[%emt 0:01:34]} 28. Kg1 {[%emt 0:00:20]} Ng6 {[%emt 0:00:05]} 29. Nc5 {[%emt 0:10:45]} Nf4 {[%emt 0:05:41] And now ...Ne2+ would win.} 30. Qf3 {[%emt 0:01:30] Inhibits Ne2+.} (30. Re1 $16) 30... Rb8 $14 {[%emt 0:01:47]} 31. Rf1 $36 {[%emt 0:06:38][%mdl 2048] White has the initiative.} Rb1 $2 {[%emt 0:09:06]} (31... g5 $14) 32. Kh2 $1 $18 {[%emt 0:04:52] aiming for Rxb1.} Rxf1 {[%emt 0:02:40]} 33. Qxf1 {[%emt 0:00:02][%mdl 4096] Endgame KQN-KQN} g5 {[%emt 0:01:38][%cal Bg7g5,Bg5g4][%mdl 32]} 34. Qf3 {[%emt 0:04:15]} g4 {[%emt 0:07:48]} 35. Qa8+ {[%emt 0:00:33]} Kg7 {[%emt 0:00:06]} 36. Qe4 {[%emt 0:00:59]} ({Stronger than} 36. hxg4 Qxg4 37. Qe4 Kh6 $11) 36... Qg5 $2 {[%emt 0:00:15]} (36... Qxe4 37. Nxe4 f5) 37. Qe5+ $1 {[%emt 0:04:01]} Qxe5 {[%emt 0:00:26]} 38. dxe5 {[%emt 0:00:02]} gxh3 {[%emt 0:00:07]} 39. gxh3 {[%emt 0:00:46] KN-KN} Nd5 {[%emt 0:00:30]} 40. Ne4 {[%emt 0:00:47]} Kg6 {[%emt 0:00:36]} 41. c4 {[%emt 0:02:10]} Nb4 {[%emt 0:01:32] [#]} 42. a4 {[%emt 0:03:52][%cal Ba2a4,Ba4a5,Ba5a6][%mdl 32] Nd6 would be deadly.} Nc6 $2 {[%emt 0:00:52] [#] This move loses the game for Black.} (42... h4 $16 {was necessary.}) 43. Nd6 $1 {[%emt 0:00:56]} Nxe5 $2 {[%emt 0:01:49]} (43... h4 44. Kg2 Kg5 45. Nxf7+ Kf4) 44. a5 {[%emt 0:00:13] Hoping for a6.} Nc6 {[%emt 0:00:33]} 45. a6 {[%emt 0:00:03]} Kf6 {[%emt 0:01:12]} 46. Kg3 {[%emt 0:01:29]} e5 {[%emt 0:01:01]} 47. Nb5 {[%emt 0:00:28] White mates.} Kf5 {[%emt 0:00:35]} 48. Kf3 {[%emt 0:01:19]} Ke6 {[%emt 0:01:23]} 49. a7 {[%emt 0:00:20]} Nxa7 {[%emt 0:00:03]} 50. Nxa7 {[%emt 0:00:02] KN-K3P} f5 {[%emt 0:00:14]} 51. Nb5 {[%emt 0:00:20]} Kd7 {[%emt 0:01:08]} 52. h4 {[%emt 0:00:27]} Kc6 {[%emt 0:00:19]} 53. Nc3 {[%emt 0:00:19]} Kc5 {[%emt 0:00:22]} 54. Nd5 {[%emt 0:00:09]} f4 {[%emt 0:01:33]} 55. Ke4 {[%emt 0:00:25]} Kxc4 {[%emt 0:00:12]} 56. Nf6 {[%emt 0:00:13]} f3 {[%emt 0:00:51]} 57. Kxf3 {[%emt 0:00:09]} Kd3 {[%emt 0:00:05]} 58. Nxh5 {[%emt 0:00:13]} e4+ {[%emt 0:00:32]} 59. Kf4 {[%emt 0:00:05]} e3 {[%emt 0:00:14]} 60. Ng3 {[%emt 0:00:01] Weighted Error Value: White=0.06 (flawless) /Black=0.30} 1-0

[Event "10th Cherry Blossom Classic 2023"]
[Site "Dulles"]
[Date "2023.05.29"]
[Round "9.9"]
[White "Morefield, Jason"]
[Black "Girsh, Daniel"]
[Result "1-0"]
[ECO "B92"]
[WhiteElo "2167"]
[BlackElo "2123"]
[Annotator "TA"]
[PlyCount "63"]
[EventDate "2023.05.24"]
[EventType "swiss"]
[EventCountry "USA"]
[SourceTitle "playchess.com"]
[Source "ChessBase"]
[SourceQuality "1"]
[TimeControl "5400+30"]

{[%evp 14,63,32,25,57,58,104,40,63,54,54,52,148,167,162,127,189,181,178,178,281,293,438,435,535,568,545,568,556,493,870,707,684,516,510,492,592,589,631,620,1262,679,1463,1348,1010,986,979,979,6512,6196,5310,4731]} 1. e4 {[%emt 0:00:06]} c5 {[%emt 0:00:04]} 2. Nf3 {[%emt 0:00:06][%cal Bg1f3,Bf3d4,Bd4b3,Bb3d2][%mdl 32]} d6 {[%emt 0:00:04]} 3. d4 {[%emt 0:00:08]} cxd4 {[%emt 0:00:04]} 4. Nxd4 {[%emt 0:00:07]} Nf6 {[%emt 0:00:07]} 5. Nc3 {[%emt 0:00:04]} a6 {[%emt 0:00:04]} 6. Be2 {[%emt 0:00:08]} e5 {[%emt 0:00:06]} 7. Nb3 {[%emt 0:00:05]} Be6 {[%emt 0:00:08]} 8. f4 {[%emt 0:00:10][%cal Bf2f4,Bf4f5][%mdl 32]} Nc6 {[%emt 0:00:06] B92: Sicilian Najdorf: 6 Be2.} 9. f5 {[%emt 0:00:36]} Bd7 {[%emt 0:00:05] [#]} (9... Bxb3 $14 10. axb3 Rc8) 10. Be3 {[%emt 0:01:44] [#]} ({White should play} 10. Bg5 $1 $16) 10... Na5 $146 {[%emt 0:03:17] White is slightly better.} ({Predecessor:} 10... b5 11. Bf3 Be7 12. g4 h6 13. Qd2 Rc8 14. O-O-O Na5 15. Nxa5 Qxa5 16. Kb1 b4 {1-0 Bienias,P (1898)-Szmacinski,S (1857) POL-chT 2nd League 2021 (4.12)}) 11. Nd2 {[%emt 0:06:55] White is more active.} Rc8 {[%emt 0:03:44][%cal Od6d5]} 12. O-O {[%emt 0:04:46]} Rxc3 {[%emt 0:16:27]} 13. bxc3 $16 {[%emt 0:03:13]} d5 {[%emt 0:00:08]} 14. Bf3 {[%emt 0:15:52]} Bc6 {[%emt 0:01:54]} (14... Be7 $16 15. exd5 O-O) 15. exd5 $18 {[%emt 0:01:22]} Nxd5 {[%emt 0:00:11]} 16. Bf2 {[%emt 0:02:06]} Nxc3 {[%emt 0:10:48]} (16... Be7 {keeps fighting.} 17. c4 Nc3) 17. Qe1 {[%emt 0:00:22]} Bd6 {[%emt 0:02:27] [#]} (17... f6 $142 18. Bh5+ Kd7) 18. Nc4 $1 {[%emt 0:03:44][%mdl 576] Discovered Attack, Deflection. White is clearly winning.} Nxc4 {[%emt 0:11:10]} (18... Bxf3 19. Nxd6+) 19. Bxc6+ {[%emt 0:00:08]} ({Less strong is} 19. Qxc3 Bxf3 20. Qxf3 (20. Qxc4 Qg5 $11) 20... Nd2 21. Qxb7 Nxf1 $14) 19... bxc6 {[%emt 0:00:07]} 20. Qxc3 {[%emt 0:00:09]} Na5 {[%emt 0:01:31]} 21. Rfd1 {[%emt 0:00:12][%cal Bf1d1,Bd1d6,Bd6c6][%mdl 32]} Nb7 {[%emt 0:02:45]} (21... Qc7 $142 22. Rxd6 Qxd6 23. Qxa5 O-O 24. Qxa6 Qd7) 22. Rab1 {[%emt 0:01:56]} Qc7 {[%emt 0:00:15]} 23. Rxb7 {[%emt 0:00:09][%mdl 64] Remove Defender, Deflection} Qxb7 {[%emt 0:00:04]} 24. Rxd6 {[%emt 0:00:09]} O-O {[%emt 0:00:07]} 25. h3 {[%emt 0:00:36]} Qb1+ {[%emt 0:00:04]} 26. Kh2 {[%emt 0:00:09]} Qxa2 {[%emt 0:00:04]} 27. Rxc6 {[%emt 0:00:11][%cal Oc6c8] Hoping for Rc8!} Qd5 {[%emt 0:00:59]} 28. Rc8 {[%emt 0:00:19]} Qd7 {[%emt 0:00:41]} 29. Rxf8+ {[%emt 0:00:08]} Kxf8 {[%emt 0:00:03]} 30. Qxe5 {[%emt 0:00:13] Threatening mate with Bc5+.} h5 {[%emt 0:00:47]} 31. c4 {[%emt 0:00:33] White threatens f6 and mate.} f6 {[%emt 0:00:13]} 32. Bc5+ {[%emt 0:00:18] Weighted Error Value: White=0.42/Black=0.65} 1-0